Cogmind - Beta 9.6 @@@ ROGUE MODE // 2020.08.12 @ 23:49:08 // Winter2019/RPGLIKE Player: FontPeg Result: Destroyed by G-47 Trooper with Particle Gun Performance ------------- Evolutions (3) 1500 Regions Visited (4) 800 Robots Destroyed (35) 175 Value Destroyed (1114) 1114 Prototype IDs (4) 80 Alien Tech Used (0) 0 Bonus (200) 200 TOTAL SCORE: 3869 Bonus ------- Pacifist 200 Cogmind --------- Core Integrity 0/750 Matter 300/300 Energy 53/160 System Corruption 0% Temperature Cool (213) Movement Treading (152) Location -7/Factory Parts ------- > --- POWER (1) -------- Light Nuclear Core > --- PROPULSION (2) --- Light Treads Advanced Treads > --- UTILITY (4) ------ Sensor Array Improved Signal Interpreter Armor Integrity Analyzer > --- WEAPON (3) ------- Heavy Ion Cannon Heavy Ion Cannon Heavy Ion Cannon > --- INVENTORY (2) ---- System Shield Heavy Ion Cannon Peak State ------------ > --- POWER ------------ Light Nuclear Core > --- PROPULSION ------- Light Treads Advanced Treads > --- UTILITY ---------- Sensor Array Improved Signal Interpreter Armor Integrity Analyzer > --- WEAPON ----------- Heavy Ion Cannon Heavy Ion Cannon Heavy Ion Cannon > --- INVENTORY -------- System Shield Heavy Ion Cannon [Rating: 24] Favorites ----------- Power Light Nuclear Core Engine Improved Ion Engine Power Core Light Nuclear Core Propulsion Light Treads Treads Light Treads Utility Sensor Array Device Sensor Array Processor Armor Integrity Analyzer Protection Hardened Medium Armor Plating Weapon Particle Gun Energy Gun Particle Gun Energy Cannon Heavy Particle Cannon Ballistic Gun Light Assault Rifle Build | -11 -10 -9 -8 -7 ------- Run | Scr Mat Mat Mat Fac Slots Evolved 6 | 3 . 3 . . Power . | . . . . . Propulsion 1 | 1 . . . . Utility 3 | 1 . 2 . . Weapon 2 | 1 . 1 . . Parts Attached 30 | 6 3 9 8 4 Power 3 | 1 . 1 1 . Engine 2 | 1 . 1 . . Core 1 | . . . 1 . Reactor . | . . . . . Propulsion 3 | 2 . . . 1 Treads 3 | 2 . . . 1 Leg . | . . . . . Wheel . | . . . . . Hover . | . . . . . Flight . | . . . . . Utility 8 | . 3 2 3 . Device 3 | . 2 1 . . Storage . | . . . . . Processor 3 | . 1 1 1 . Hackware . | . . . . . Protection 2 | . . . 2 . Artifact . | . . . . . Weapon 16 | 3 . 6 4 3 Energy Gun 10 | 2 . 5 3 . Energy Cannon 4 | . . . 1 3 Ballistic Gun 2 | 1 . 1 . . Ballistic Cannon . | . . . . . Launcher . | . . . . . Special Weapon . | . . . . . Impact Weapon . | . . . . . Slashing Weapon . | . . . . . Piercing Weapon . | . . . . . Special Melee Weapon . | . . . . . Unidentified Prototypes . | . . . . . Parts Lost 2 | . . . 2 . Power . | . . . . . Propulsion . | . . . . . Utility 1 | . . . 1 . Weapon 1 | . . . 1 . Highest Loss Streak 1 | . . . 1 . Average Slot Usage (%) 97 | . 98 96 98 89 Engine 5 | . 14 11 3 . Core 4 | . . . 6 10 Treads 21 | . 28 22 20 20 Device 13 | . 22 18 10 10 Processor 16 | . 3 11 20 20 Protection 5 | . . . 8 . Energy Gun 22 | . 28 26 22 2 Energy Cannon 6 | . . . 7 27 Ballistic Gun 1 | . . 6 . . Naked Turns . | . . . . . Heaviest Build 28 | 6 8 18 28 27 Greatest Support 42 | 40 40 40 40 42 Greatest Overweight (x) . | . . . . . Average Overweight (x) . | . . . . . Largest Inventory Capacity 2 | 2 2 2 2 2 Average Capacity 2 | 2 2 2 2 2 Most Carried 2 | 2 2 2 2 2 Average Carried 1 | 1 2 1 1 1 Final Capacity 2 | 2 2 2 2 2 Final Carried 2 | 2 2 2 2 2 Class Distribution -------------------- 48% | Tank 18% | Mutant 17% | Skirmisher 15% | Gunner Dominant Class ---------------- Mutant | -10/Materials Skirmisher | -9/Materials Tank | -8/Materials Gunner | -7/Factory Resources | -11 -10 -9 -8 -7 ----------- Run | Scr Mat Mat Mat Fac Matter Collected 524 | 250 . 75 159 40 Remotely . | . . . . . Salvage Created 913 | . . 173 740 . Parts 66 | . . 31 32 3 Haulers Intercepted 1 | . . 1 . . Recyclers Shooed . | . . . . . Parts Field Recycled . | . . . . . Retrieved Matter . | . . . . . Parts Self-Destructed . | . . . . . Prevented . | . . . . . Kills | -11 -10 -9 -8 -7 ------- Run | Scr Mat Mat Mat Fac Combat Hostiles Destroyed 31 | . . 11 19 1 Guns 18 | . . 10 8 . Cannons 12 | . . . 11 1 Classes Destroyed 8 | . . 4 4 . Builder 1 | . . . 1 . Hauler 1 | . . 1 . . Operator 1 | . . . 1 . Watcher 1 | . . . 1 . Swarmer 10 | . . 7 3 . Grunt 15 | . . 1 13 1 Brawler 1 | . . . 1 . Sentry 5 | . . 3 2 . Best Kill Streak 8 | . . 4 8 1 Combat Bots Only 8 | . . 4 8 1 Max Kills in Single Turn 1 | . . 1 1 1 Gunslinging . | . . . . . Exploded . | . . . . . Melee . | . . . . . Uniques/NPCs Destroyed . | . . . . . Combat | -11 -10 -9 -8 -7 -------- Run | Scr Mat Mat Mat Fac Damage Taken 1936 | . 44 472 1301 119 Core 1409 | . 34 383 898 94 Absorbed by Shields . | . . . . . Redirected to Core 1136 | . 34 292 731 79 Core Remaining (%) 76 | 100 94 100 11 . Volleys Fired 117 | . . 35 76 6 Largest 3 | . . 3 3 3 Hottest 205 | . . 171 205 195 Shots Fired 300 | . . 83 199 18 Gun 210 | . . 83 127 . Cannon 90 | . . . 72 18 Launcher . | . . . . . Special . | . . . . . Kinetic 24 | . . 24 . . Thermal 276 | . . 59 199 18 Explosive . | . . . . . Electromagnetic . | . . . . . Robot Hit Streak 26 | . . 8 15 26 Robot Miss Streak 5 | . . 5 4 . Penetration Max . | . . . . . Secondary Targets . | . . . . . Shots Hit Robots 183 | . . 40 125 18 Core Hits 68 | . . 18 45 5 Critical Hits . | . . . . . Critical Kills . | . . . . . Critical Parts Destroyed . | . . . . . Melee Attacks . | . . . . . Impact . | . . . . . Slashing . | . . . . . Piercing . | . . . . . Sneak Attacks . | . . . . . Combat Hostiles . | . . . . . Follow-up Attacks . | . . . . . Damage Inflicted 3150 | . . 456 2171 523 Guns 1777 | . . 456 1321 . Cannons 1373 | . . . 850 523 Explosions . | . . . . . Melee . | . . . . . Ramming . | . . . . . Kinetic 55 | . . 55 . . Thermal 3095 | . . 401 2171 523 Explosive . | . . . . . Electromagnetic . | . . . . . Impact . | . . . . . Slashing . | . . . . . Piercing . | . . . . . Highest Corruption . | . . . . . Average Corruption . | . . . . . Corruption Purged . | . . . . . Overload Shots . | . . . . . Overflow Damage 24 | . . . 12 12 Projectiles 24 | . . . 12 12 Explosions . | . . . . . Melee . | . . . . . Knockbacks . | . . . . . Impact . | . . . . . Kinetic . | . . . . . Secondary . | . . . . . Self-Inflicted Damage . | . . . . . Shots . | . . . . . Rammed . | . . . . . Targets Rammed . | . . . . . Kicked . | . . . . . Crushed . | . . . . . Highest Temperature 736 | . . 384 736 204 Average Temperature 158 | . . 95 191 75 Received Heat Transfer 747 | . . 108 558 81 Effects 16 | . . 2 14 . Shutdowns 4 | . . . 4 . Interference 4 | . . 2 2 . Matter Decay 1 | . . . 1 . Damage (minor) 2 | . . . 2 . Damage (major) 4 | . . . 4 . Damage (core) 1 | . . . 1 . Siege Activations . | . . . . . Robots Corrupted . | . . . . . Combat Hostiles . | . . . . . Parts Fried . | . . . . . Impact Corruptions . | . . . . . Robots Melted 1 | . . 1 . . Combat Hostiles 1 | . . 1 . . Parts Melted 19 | . . 4 15 . Heat Transferred 6193 | . . 1050 4477 666 Parts Sabotaged . | . . . . . Parts Stolen . | . . . . . Parts Stripped . | . . . . . Power Chain Reactions . | . . . . . Missiles Intercepted . | . . . . . Alert | -11 -10 -9 -8 -7 ------- Run | Scr Mat Mat Mat Fac Peak Influence 342 | . . 342 232 74 Average Influence 99 | . . 198 85 49 Maximum Alert Level 1 | . . 1 1 . Low Security (%) 85 | 100 100 52 94 100 Level 1 14 | . . 47 5 . Level 2 . | . . . . . Level 3 . | . . . . . Level 4 . | . . . . . Level 5 . | . . . . . High Security . | . . . . . Max Security . | . . . . . Squads Dispatched 5 | . . . 3 2 Investigation 3 | . . . 2 1 Extermination . | . . . . . Reinforcement 1 | . . . 1 . Assault . | . . . . . Garrison 1 | . . . . 1 Intercept . | . . . . . Construction Impeded . | . . . . . Haulers Reinforced . | . . . . . Stealth | -11 -10 -9 -8 -7 --------- Run | Scr Mat Mat Mat Fac Distress Signals 3 | . . . 3 . Communications Jammed . | . . . . . Distress Signals . | . . . . . Times Spotted 56 | . . 15 35 6 Peak Tracking Total 8 | . . 5 8 5 Tactical Retreats 5 | . . 1 4 . Traps | -11 -10 -9 -8 -7 ------- Run | Scr Mat Mat Mat Fac Traps Triggered 3 | . 1 1 1 . Indirectly . | . . . . . Trap Hack Attempts . | . . . . . Triggered . | . . . . . Disarmed . | . . . . . Reprogrammed . | . . . . . Reused . | . . . . . Traps Extracted . | . . . . . Installed . | . . . . . Triggered . | . . . . . Machines | -11 -10 -9 -8 -7 ---------- Run | Scr Mat Mat Mat Fac Machines Disabled 1 | . . . 1 . Max in Single Turn 1 | . . . 1 . Garrison Access 1 | . . . 1 . Machines Sabotaged . | . . . . . Garrisons Compromised . | . . . . . Overloaded Fab Kills . | . . . . . Fab Network Shutdowns . | . . . . . Hacking | -11 -10 -9 -8 -7 --------- Run | Scr Mat Mat Mat Fac Machines Accessed 11 | . . 3 7 1 Terminals 8 | . . 3 5 . Fabricators 1 | . . . . 1 Repair Stations . | . . . . . Recycling Units . | . . . . . Scanalyzers 1 | . . . 1 . Garrison Access 1 | . . . 1 . Total Hacks 37 | . . 8 26 3 Successful 27 | . . 6 21 . Failed 10 | . . 2 5 3 Catastrophic 3 | . . . 1 2 Database Lockouts . | . . . . . Manual 22 | . . 3 19 . Terminals 28 | . . 8 20 . Fabricators 3 | . . . . 3 Repair Stations . | . . . . . Recycling Units . | . . . . . Scanalyzers 5 | . . . 5 . Garrison Access 1 | . . . 1 . Terminal Hacks 11 | . . 3 8 . Prototype ID Bank 2 | . . 1 1 . Level Access Points 1 | . . . 1 . Terminal Index 1 | . . . 1 . Unreport Threat 4 | . . . 4 . Patrol Status 1 | . . 1 . . Recall Investigation 1 | . . . 1 . Zone Layout 1 | . . 1 . . Fabricator Hacks . | . . . . . Repair Station Hacks . | . . . . . Recycling Unit Hacks . | . . . . . Scanalyzer 4 | . . . 4 . Insert Component 2 | . . . 2 . Analyze 2 | . . . 2 . Garrison Access Hacks 1 | . . . 1 . Seal Access 1 | . . . 1 . Unauthorized Hacks 11 | . . 3 8 . Terminals 10 | . . 3 7 . Track 2 | . . . 2 . Botnet 8 | . . 3 5 . Fabricators . | . . . . . Repair Stations . | . . . . . Recycling Units . | . . . . . Scanalyzers 1 | . . . 1 . Extract 1 | . . . 1 . Garrison Access . | . . . . . Data Cores Recovered . | . . . . . Used . | . . . . . Hacking Detections 8 | . . 2 5 1 Full Trace Events 1 | . . . . 1 Feedback Events . | . . . . . Feedback Blocked . | . . . . . Robot Schematics Acquired . | . . . . . Robots Built . | . . . . . Matter . | . . . . . Time . | . . . . . Total Robot Build Rating . | . . . . . Part Schematics Acquired 3 | . . . 3 . Parts Built . | . . . . . Matter . | . . . . . Time . | . . . . . Total Part Build Rating . | . . . . . Parts Repaired . | . . . . . Time . | . . . . . Parts Recycled . | . . . . . Recycled Matter . | . . . . . Retrieved Matter . | . . . . . Retrieved Components . | . . . . . Parts Scanalyzed 2 | . . . 2 . Part Schematics Acquired 2 | . . . 2 . Parts Damaged . | . . . . . Bothacking | -11 -10 -9 -8 -7 ------------ Run | Scr Mat Mat Mat Fac Used RIF Installer . | . . . . . Robots Hacked . | . . . . . Non-combat . | . . . . . Combat . | . . . . . Robot Hacks Applied . | . . . . . Relay Couplers Released . | . . . . . Robots Rewired . | . . . . . Allies Hacked . | . . . . . Hacks Repelled . | . . . . . Allies | -11 -10 -9 -8 -7 -------- Run | Scr Mat Mat Mat Fac Total Allies . | . . . . . Largest Group . | . . . . . Highest-Rated Group . | . . . . . Highest-Rated Ally . | . . . . . Total Orders . | . . . . . Ally Attacks . | . . . . . Total Damage . | . . . . . Kills . | . . . . . Allies Corrupted . | . . . . . Allies Melted . | . . . . . Intel | -11 -10 -9 -8 -7 ------- Run | Scr Mat Mat Mat Fac Robot Analysis Total . | . . . . . Derelict Logs Recovered . | . . . . . Drone Launches . | . . . . . Drone Recoveries . | . . . . . Exploration | -11 -10 -9 -8 -7 ------------- Run | Scr Mat Mat Mat Fac Turns Passed 1906 | 59 169 457 1074 147 Spaces Moved 858 | 33 100 183 464 78 Core 5 | 5 . . . . Treads 853 | 28 100 183 464 78 Legs . | . . . . . Wheels . | . . . . . Hover . | . . . . . Flight . | . . . . . Fastest Speed 50 | 50 160 160 160 152 Average Speed 158 | 143 160 160 160 152 Slowest Speed 160 | 160 160 160 160 152 Overloaded Moves . | . . . . . Propulsion Burnouts . | . . . . . Robots Hopped . | . . . . . Cave-ins Triggered . | . . . . . Exploration Rate (%) 18 | 4 19 23 41 3 Regions Visited 4 Branch Regions . Pre-discovered Areas . | . . . . . Known Exits Taken 3 | . 1 1 1 . Unknown Exits Taken 1 | 1 . . . . Scrap Searched . | . . . . . Spaces Dug 20 | . . . 20 . Terrain Destroyed 35 | . . . 35 . Melee . | . . . . . Projectile 35 | . . . 35 . AOE . | . . . . . Actions | -11 -10 -9 -8 -7 --------- Run | Scr Mat Mat Mat Fac Total 1173 | 43 108 287 642 93 Wait 102 | . 5 27 70 . Move 854 | 32 99 182 463 78 Hop . | . . . . . Pick Up 15 | 5 . 6 3 1 Fast Attach 11 | 2 3 1 2 3 Attach 6 | 3 . 2 1 . Detach . | . . . . . Swap 13 | 1 . 6 5 1 Drop 16 | . 1 6 5 4 Fire 117 | . . 35 76 6 Melee . | . . . . . Ram . | . . . . . Kick . | . . . . . Crush . | . . . . . Escape Stasis . | . . . . . Rewire . | . . . . . Trap . | . . . . . Miscellaneous 39 | . . 22 17 . Route ------- -11/Scrapyard -10/Materials -9/Materials -8/Materials (discovered 3 exits: *Fac x3) -7/Factory History --------- Turn | Location | Event 1 | -11/Scrapyard | Upgraded with Propulsion slot (x1) 1 | -11/Scrapyard | Upgraded with Utility slot (x1) 1 | -11/Scrapyard | Upgraded with Weapon slot (x1) 20 | -11/Scrapyard | Discovered new exit (range 16) 60 | -11/Scrapyard | Entered Materials 140 | -10/Materials | Discovered new exit (range 15) 227 | -10/Materials | Identified exit to Materials 229 | -10/Materials | Entered another Materials area 231 | -9/Materials | Reached level 2 234 | -9/Materials | Upgraded with Utility slot (x1) 234 | -9/Materials | Upgraded with Weapon slot (x1) 635 | -9/Materials | Reached level 3 652 | -9/Materials | Discovered new exit (range 9) 672 | -9/Materials | Upgraded with Utility slot (x1) 685 | -9/Materials | Identified exit to Materials 686 | -9/Materials | Entered another Materials area 688 | -8/Materials | Reached level 4 1299 | -8/Materials | Build established: Tank 1475 | -8/Materials | Reached level 5 1509 | -8/Materials | Core integrity fell below 50% 1569 | -8/Materials | Destroyed 8 combat bots 1604 | -8/Materials | Identified exit to Factory 1674 | -8/Materials | Core integrity fell below 20% 1760 | -8/Materials | Entered Factory 1761 | -7/Factory | Core integrity fell below 50% 1761 | -7/Factory | Core integrity fell below 20% 1762 | -7/Factory | Reached level 6 1891 | -7/Factory | Garrison activated, responded to threat 1907 | -7/Factory | Destroyed by G-47 Trooper with Particle Gun Last Messages --------------- 01699_ U-05 Engineer builds a Wall. LOCATION=FACTORY GOAL=ESCAPE 01762_ Reached level 6. 01762_ Dropped Lgt. Treads. 01766_ Upgraded: Heat Dissipation (+6) 01766_ Upgraded: KI Resistance % (+5) 01766_ Upgraded: TH Damage % (+10) 01779_ Dropped Particle Gun. 01780_ Dropped Beam Rifle. 01780_ Dropped Hvy. Particle Cannon. 01781_ Acquired Hvy. Ion Cannon. 01844_ Acquired 40 matter. 01856_ Connecting with Fabricator... 01856_ ALERT: Suspicious activity at Fabricator F006. Dispatching Investigation squad. 01882_ G-47 Trooper destroyed. 01891_ G-47 Trooper calls for garrison reinforcements. 01891_ ALERT: Activating Garrison Access F002. 01901_ Destroyed Particle Gun. Map ----- +----------------------------------------------------+ | ?????????????????????????????????????????????????? | | ?????????????????????????????????????????????????? | | ?????????????????????????????????????????????????? | | ?????????????????????????????????????????????????? | | ?????????????????????????????????????????????????? | | ?????????????????????????????????????????????????? | | ?????????????????????????????????################# | | ?????????????????????????????????# | | ?????????????????????????????????# | | ?????????????????????????????????# | | ?????????????????????????????????# | | ?????????????????????????????????# ^^ | | ?????????????????????????????????# ########### | | ???????????????????????#?######### #?????# | | ??????????????????????? #?????# | | ??????????????????????? ####### | | ?????????????????????? """ + # "" | | ?????????????????????""" """ "Y" # % # "" | | ????????????????????"""" """"" " " # # "" | | ?????????????????"?""""" """"" # # "" | | ?????????????????? # # "" | | ??????????????????? """ """ """ # #[ "" | | ????????????????"" """"" """"" """"" + """ # "" | | ???????????? """"" """"" """"" """"" # "F" # | | ?????????? g g g # " # | | ?????????? [%= l @ # """ ##### | | ????????????# g! ############### """ #???? | | ????????????# ??????????????# #???? | | ????????????# ???????????????#######???? | | ????????????# """"""" ?????????????????????????? | | ???????????????""""""" ??????????????????????????? | | ?????????????????""""" ??????????????????????????? | | ???????????????????"""???????????????????????????? | | ??????????????????? ???????????????????????????? | | ????????????????????"????????????????????????????? | | ????????????????????"????????????????????????????? | | ?????????????????????????????????????????????????? | | ?????????????????????????????????????????????????? | | ?????????????????????????????????????????????????? | | ?????????????????????????????????????????????????? | | ?????????????????????????????????????????????????? | | ?????????????????????????????????????????????????? | | ?????????????????????????????????????????????????? | | ?????????????????????????????????????????????????? | | ?????????????????????????????????????????????????? | | ?????????????????????????????????????????????????? | | ?????????????????????????????????????????????????? | | ?????????????????????????????????????????????????? | | ?????????????????????????????????????????????????? | | ?????????????????????????????????????????????????? | +----------------------------------------------------+ Best States ------------- Heat Dissipation 61 Energy Generation 14 Energy Capacity 265 Matter Stores 300 Matter Capacity 300 Sight Range 16 Robot Scan Range 10 Terrain Scan Density 10 Armor Coverage 225 Resistance: KI 15 Resistance: TH 10 Resistance: EX 10 Evasion (%) 40 Armor Integrity Analysis 33 Recoil Reduction 2 Offensive Hacking 10 Item Schematics ----------------- System Shield | -8/Materials | Scanalyzed Hvy. Particle Cannon | -8/Materials | Scanalyzed Imp. Signal Interpreter | -8/Materials | Extracted Robot Schematics ------------------ None Fabricated ------------ Nothing Alien Tech Used ----------------- None Achievements -------------- None Challenges ------------ None RPGLIKE | -11 -10 -9 -8 -7 --------- Run | Scr Mat Mat Mat Fac Levels Raised 5 | . . 2 2 1 XP Earned 11735 | 3000 100 2955 4030 1650 XP Spent 10355 | 2900 . 2700 3355 1400 Upgrades 31 | 9 . 3 15 4 Propulsion Slot 1 | 1 . . . . Utility Slot 3 | 1 . 2 . . Weapon Slot 2 | 1 . 1 . . Core Integrity 3 | . . . 3 . Heat Dissipation 6 | . . . 5 1 Inventory Capacity 2 | 2 . . . . Ranged Accuracy 3 | . . . 3 . Hack Attack % 2 | 1 . . 1 . KI Resistance % 3 | 1 . . 1 1 TH Resistance % 2 | 1 . . 1 . EX Resistance % 2 | 1 . . 1 . TH Damage % 2 | . . . . 2 Protomatter Created 516 | . . 176 288 52 Integrity Restored 839 | . . 465 374 . Core 651 | . . 417 234 . Parts 188 | . . 48 140 . Protomatter Decayed 170 | . . 9 161 . Game ------ Seed HugeDerelictStreamer Manual? 0 Play Time 00:19:22 Cumulative 67.6 hours Start 2020.08.12 @ 23:30:58 End 2020.08.12 @ 23:49:08 Sessions 1 Manual Loads 0 Difficulty Rogue Special Mode Winter2019/RPGLIKE Game No. 99 Rogue 99 Adventurer 0 Explorer 0 Win Type - Total 1 Types 1/0/0/0/0/0/0 Lore% 37 Gallery% 46 Achievement% 39 Wizard Run 0 Options --------- ASCII 0 Keyboard 0 Movement Mouse Keybinds 0 Fullscreen 2 Font 18/X11 Map View 76x50 Tactical HUD 1 Map Filters NONE Filters NONE Steam 1 RUN: 71b0614f-2936-434b-b4d6-bd491c72ce7b